bitfinex-derivatives/quotes_SOLF0:USTF0_20260316
["timestamp","ask_amount","ask_price","bid_price","bid_amount"]
[1773629966847,2.8667443,91.51,91.478,12.74798131]
[1773629968241,2.8667443,91.5,91.45,12.97111221]
[1773629970649,2.8667443,91.5,91.452,9.839]
[1773629970851,2.8667443,91.5,91.453,12.85197599]
[1773629978556,2.8667443,91.5,91.454,9.839]
[1773629978758,2.8667443,91.5,91.455,12.63783997]
[1773629979053,9.831,91.527,91.461,12.63783997]
[1773629979356,2.8667443,91.51,91.465,12.63783997]
[1773629981856,9.832,91.519,91.467,12.66348027]
[1773629983460,2.8667443,91.51,91.467,12.66348027]
[1773629987559,9.834,91.504,91.467,12.66348027]
[1773629988264,2.8667443,91.5,91.467,12.66348027]
[1773629989462,2.8667443,91.51,91.467,12.66348027]
[1773629990768,2.8667443,91.5,91.467,12.66348027]
[1773629998169,2.8667443,91.49,91.449,13.54828335]
[1773629998374,10.06779526,91.542,91.385,32.79]
[1773629998375,2.8667443,91.48,91.45,13.06815524]
[1773630000776,2.8667443,91.49,91.45,13.06815524]
[1773630001278,2.8667443,91.46,91.431,13.05333894]
[1773630001575,2.8667443,91.45,91.431,13.05333894]
[1773630001777,2.8667443,91.44,91.395,9.845]
[1773630001982,2.8667443,91.43,91.378,13.54828335]
[1773630002176,2.8667443,91.43,91.37,2.8667443]
[1773630002373,2.8667443,91.44,91.38,2.8667443]
[1773630002572,2.79313122,91.459,91.394,9.845]
[1773630002876,2.8667443,91.41,91.351,13.54828335]
[1773630003183,2.8667443,91.41,91.34,2.8667443]
[1773630003676,2.8667443,91.41,91.351,7.5954757]
[1773630003875,2.79313122,91.419,91.355,7.5954757]
[1773630004084,2.8667443,91.43,91.37,2.8667443]
[1773630004280,2.8667443,91.43,91.371,7.5954757]
[1773630004581,2.8667443,91.42,91.371,7.5954757]
[1773630005579,2.8667443,91.41,91.371,7.5954757]
[1773630007578,2.8667443,91.4,91.343,7.5954757]
[1773630007977,2.8667443,91.4,91.347,7.5954757]
[1773630010783,2.8667443,91.4,91.351,7.5954757]
[1773630013785,2.69337955,91.408,91.354,7.5954757]
[1773630014684,2.8667443,91.4,91.354,7.5954757]
[1773630016488,2.8667443,91.37,91.321,7.5954757]
[1773630016688,2.27491524,91.379,91.321,7.5954757]
[1773630016989,2.8667443,91.37,91.321,7.5954757]
[1773630017387,9.847,91.377,91.321,7.5954757]
[1773630017592,2.8667443,91.37,91.321,7.5954757]
[1773630017891,2.8667443,91.38,91.321,7.5954757]
[1773630018093,2.8667443,91.37,91.321,7.5954757]
[1773630018290,2.8667443,91.38,91.321,7.5954757]
[1773630018591,2.8667443,91.38,91.325,7.5954757]
[1773630019199,2.8667443,91.37,91.325,7.5954757]
[1773630019582,2.24823937,91.378,91.325,7.5954757]
[1773630019790,2.8667443,91.37,91.325,7.5954757]
[1773630020493,2.8667443,91.36,91.31,7.5954757]
[1773630021089,9.849,91.366,91.311,7.5954757]
[1773630022085,2.8667443,91.37,91.313,7.69406213]
[1773630022285,9.847,91.376,91.275,1.90500694]
[1773630022286,9.847,91.376,91.321,7.69406213]
[1773630022681,2.8667443,91.38,91.323,7.69406213]
[1773630023393,2.8667443,91.37,91.323,7.69406213]
[1773630023783,2.8667443,91.38,91.323,7.69406213]
[1773630024394,9.847,91.379,91.325,9.853]
[1773630024693,2.8667443,91.37,91.326,7.69406213]
[1773630025092,5.28795147,91.37,91.326,7.69406213]
[1773630025995,2.8667443,91.37,91.326,7.69406213]
[1773630026789,2.42137181,91.359,91.313,7.69406213]
[1773630026991,2.87584169,91.34,91.3,7.69406213]
[1773630027193,2.87584169,91.33,91.3,7.69406213]
[1773630027490,2.87584169,91.32,91.261,7.69406213]
[1773630028587,2.87584169,91.32,91.263,7.69406213]
[1773630029190,2.87584169,91.32,91.268,7.69406213]
[1773630029790,9.851,91.341,91.274,7.69406213]
[1773630029988,2.87584169,91.34,91.281,7.69406213]
[1773630030392,2.87584169,91.34,91.287,7.69406213]
[1773630031701,2.87584169,91.34,91.289,7.69406213]
[1773630033399,2.87584169,91.33,91.289,7.69406213]
[1773630033796,9.85,91.353,91.291,7.69406213]
[1773630034102,2.87584169,91.35,91.291,7.69406213]
[1773630035002,9.849,91.363,91.31,2.87584169]
[1773630035199,2.87584169,91.37,91.311,7.69406213]
[1773630035392,5.61609947,91.37,91.311,7.69406213]
[1773630035596,2.87584169,91.35,91.311,7.69406213]
[1773630037400,2.87584169,91.34,91.298,7.69406213]
[1773630037801,2.87584169,91.33,91.298,7.69406213]
[1773630038001,2.87584169,91.33,91.271,7.69406213]
[1773630038201,2.87584169,91.32,91.272,7.69406213]
[1773630038402,2.87584169,91.31,91.272,7.69406213]
[1773630038798,2.87584169,91.32,91.272,7.69406213]
[1773630039499,2.68856247,91.327,91.277,7.69406213]
[1773630039696,2.87584169,91.32,91.277,7.69406213]
[1773630040499,2.87584169,91.31,91.251,7.69406213]
[1773630041102,2.87584169,91.3,91.258,7.69406213]
[1773630041406,2.87584169,91.28,91.242,7.69406213]
[1773630041596,2.87584169,91.29,91.242,7.69406213]
[1773630042212,2.87584169,91.28,91.242,7.69406213]
[1773630045309,34.42,91.309,91.195,1.90656202]
[1773630045310,2.75539798,91.305,91.244,7.69406213]
[1773630045504,2.87584169,91.3,91.244,7.69406213]
[1773630046611,2.87584169,91.3,91.246,7.69406213]
[1773630047205,2.87584169,91.31,91.252,7.69406213]
[1773630047411,2.87584169,91.3,91.252,7.69406213]
[1773630048512,2.87584169,91.31,91.258,7.69406213]
[1773630049511,2.87584169,91.31,91.261,7.69406213]
[1773630050112,32.79,91.34,91.272,7.69406213]
[1773630050113,2.87584169,91.32,91.272,7.69406213]
[1773630050814,2.87584169,91.32,91.274,7.69406213]
[1773630051611,2.87584169,91.31,91.274,7.69406213]
[1773630053017,2.87584169,91.32,91.274,7.69406213]
[1773630053210,2.87584169,91.33,91.276,7.66476061]
[1773630053517,2.87584169,91.32,91.276,7.66476061]
[1773630054112,2.87584169,91.32,91.279,2.19]
[1773630054422,2.87584169,91.32,91.28,7.16043933]
[1773630054615,2.87584169,91.33,91.28,7.16043933]
[1773630055518,2.87584169,91.33,91.282,2.19]
[1773630055717,2.87584169,91.33,91.283,7.16043933]
[1773630057014,5.56831009,91.34,91.283,7.16043933]
[1773630057516,2.87584169,91.33,91.283,7.16043933]
[1773630058013,2.87584169,91.34,91.287,7.16043933]
[1773630058217,10.93,91.401,91.223,34.42]
[1773630058218,2.87584169,91.35,91.291,7.16043933]
[1773630059517,2.87584169,91.35,91.301,7.16043933]
[1773630060719,2.65115746,91.339,91.271,7.16043933]
[1773630060927,2.65115746,91.329,91.271,7.16043933]
[1773630061716,2.65115746,91.329,91.283,7.16043933]
[1773630062316,2.87584169,91.33,91.286,7.16043933]
[1773630062717,2.87584169,91.34,91.286,7.16043933]
[1773630063620,2.87584169,91.34,91.289,7.16043933]
[1773630063921,2.189,91.347,91.289,7.16043933]
[1773630064722,2.87584169,91.34,91.291,7.16043933]
[1773630066622,2.87584169,91.34,91.293,7.16043933]
[1773630067621,2.87584169,91.34,91.296,7.16043933]
[1773630069622,2.87584169,91.34,91.298,7.16043933]
[1773630070123,2.87584169,91.35,91.315,2.189]
[1773630070321,2.87584169,91.35,91.314,7.16043933]
[1773630070618,2.74969336,91.35,91.299,7.16043933]
[1773630070818,5.62553505,91.35,91.299,7.16043933]
[1773630071417,2.87584169,91.36,91.301,7.16043933]
[1773630071618,2.87584169,91.37,91.311,7.16043933]
[1773630072315,2.74161629,91.376,91.311,7.16043933]
[1773630073723,2.87584169,91.37,91.311,7.16043933]
[1773630076117,2.63378967,91.394,91.33,2.87584169]
[1773630076318,2.63378967,91.394,91.331,7.16043933]
[1773630076319,2.87584169,91.39,91.331,7.16043933]
[1773630076725,2.63378967,91.394,91.34,2.87584169]
[1773630076932,2.63378967,91.394,91.341,7.16043933]
[1773630077930,2.87584169,91.4,91.341,7.16043933]
[1773630079126,2.58292791,91.407,91.341,7.16043933]
[1773630080624,2.87584169,91.4,91.341,7.16043933]
[1773630083834,2.58292791,91.407,91.341,7.16043933]
[1773630084034,2.87584169,91.4,91.341,7.16043933]
[1773630086137,2.58292791,91.407,91.341,7.16043933]
[1773630086740,5.27797608,91.4,91.341,7.16043933]
[1773630088841,5.27572929,91.4,91.341,7.16043933]
[1773630091739,2.30493838,91.401,91.351,6.86776251]
[1773630092042,2.30493838,91.413,91.361,6.86776251]
[1773630096143,2.8735949,91.42,91.361,6.86776251]
[1773630096348,2.16438375,91.438,91.381,6.86776251]
[1773630098242,2.10486556,91.464,91.401,6.86776251]
[1773630098449,2.10486556,91.464,91.411,6.86776251]
[1773630099548,1.93633263,91.439,91.397,6.86776251]
[1773630099749,1.93633263,91.472,91.397,6.86776251]
[1773630099948,1.93633263,91.472,91.411,6.86776251]
[1773630101350,1.95238086,91.483,91.421,6.86776251]
[1773630101748,4.9963572,91.48,91.421,6.86776251]
[1773630101951,2.1227623,91.479,91.421,6.86776251]
[1773630106853,2.0638313,91.494,91.43,2.8735949]
[1773630107054,2.8735949,91.49,91.431,6.86776251]
[1773630107355,2.8735949,91.48,91.431,6.86776251]
[1773630110151,1.9910179,91.479,91.431,6.86776251]
[1773630110558,1.97931849,91.469,91.418,6.86776251]
[1773630111058,1.97931849,91.469,91.421,6.86776251]
[1773630112959,2.8735949,91.46,91.421,6.86776251]
[1773630113357,4.81181992,91.46,91.421,6.86776251]
[1773630115356,2.8735949,91.46,91.421,6.86776251]
[1773630115557,2.8735949,91.47,91.421,6.86776251]
[1773630116353,2.8735949,91.48,91.421,6.86776251]
[1773630116755,2.8735949,91.49,91.431,7.19080543]
[1773630117863,4.74123092,91.49,91.431,7.19080543]
[1773630118461,1.97472788,91.489,91.431,7.19080543]
[1773630118663,2.8735949,91.46,91.401,7.19080543]
[1773630118966,1.97472788,91.469,91.401,7.19080543]
[1773630119464,2.8735949,91.46,91.401,7.19080543]
[1773630120458,2.8735949,91.44,91.401,7.19080543]
[1773630120764,2.8735949,91.41,91.371,7.19080543]
[1773630125064,2.8735949,91.42,91.371,7.19080543]
[1773630125668,1.60671797,91.419,91.371,7.19080543]
[1773630125868,2.8735949,91.39,91.331,7.19080543]
[1773630126069,2.8735949,91.38,91.331,7.19080543]
[1773630127678,2.8735949,91.39,91.331,7.19080543]
[1773630130380,2.8735949,91.38,91.331,7.19080543]
[1773630130979,2.8735949,91.39,91.331,7.19080543]
[1773630132379,1.60671797,91.4,91.331,7.19080543]
[1773630132579,2.8735949,91.39,91.331,7.19080543]
[1773630133479,2.8735949,91.4,91.341,7.19080543]
[1773630134772,1.37551197,91.409,91.341,7.19080543]
[1773630135880,32.79,91.448,91.319,34.44]
[1773630135881,2.8735949,91.42,91.361,7.19080543]
[1773630137280,2.8735949,91.41,91.361,7.19080543]
[1773630138683,2.8735949,91.41,91.323,34.44]
[1773630138684,4.04241485,91.45,91.39,2.8735949]
[1773630138888,1.16881995,91.449,91.391,7.19080543]
[1773630139183,2.8735949,91.46,91.34,46.30950962]
[1773630139184,2.8735949,91.46,91.401,7.19080543]
[1773630140786,1.16881995,91.463,91.401,7.19080543]
[1773630143587,0.90427334,91.489,91.401,7.19080543]
[1773630147092,0.81887115,91.479,91.401,7.19080543]
[1773630148897,0.79795181,91.469,91.401,7.19080543]
[1773630157401,0.79795181,91.469,91.36,8.20227885]
[1773630157402,0.79795181,91.469,91.362,6.9613385]
[1773630160611,0.46865953,91.449,91.362,6.9613385]
[1773630160806,2.87336424,91.41,91.362,6.9613385]
[1773630161913,2.87336424,91.4,91.362,6.9613385]
[1773630162106,0.43432981,91.416,91.362,6.9613385]
[1773630162107,2.87336424,91.41,91.362,6.9613385]
[1773630163110,2.87336424,91.4,91.362,6.9613385]
[1773630164919,2.87336424,91.41,91.362,6.9613385]
[1773630165516,2.87336424,91.39,91.331,6.9613385]
[1773630168814,2.87336424,91.39,91.34,2.87336424]
[1773630169111,2.87336424,91.41,91.341,6.9613385]
[1773630169421,2.87336424,91.42,91.361,6.9613385]
[1773630169616,2.87336424,91.41,91.361,6.9613385]
[1773630175817,0.31726144,91.427,91.361,6.9613385]
[1773630175818,2.87336424,91.42,91.361,6.9613385]
[1773630178426,2.94425994,91.42,91.361,6.9613385]
[1773630178620,0.09252289,91.45,91.361,6.9613385]
[1773630178825,2.87336424,91.44,91.371,6.53760137]
[1773630180022,2.94633634,91.44,91.371,6.53760137]
[1773630180217,0.0729721,91.439,91.371,6.53760137]
[1773630181127,2.87336424,91.43,91.371,6.53760137]
[1773630183024,2.87336424,91.43,91.38,2.87336424]
[1773630183233,2.87336424,91.44,91.381,6.55782883]
[1773630184229,2.87336424,91.43,91.381,6.55782883]
[1773630184726,2.87336424,91.42,91.381,6.55782883]
[1773630184938,19.676,91.468,91.324,19.707]
[1773630184939,2.87336424,91.41,91.351,6.55426903]
[1773630186734,2.87336424,91.39,91.331,6.53349843]
[1773630192936,2.87336424,91.38,91.331,6.53349843]
[1773630195637,2.87336424,91.37,91.331,6.53349843]
[1773630195837,2.87336424,91.37,91.331,4.11726453]
[1773630196231,2.19188312,91.369,91.331,4.11726453]
[1773630196832,2.87336424,91.37,91.331,4.11726453]
[1773630197236,2.1781683,91.383,91.331,4.11726453]
[1773630197437,2.87336424,91.38,91.331,4.11726453]
[1773630198542,2.13773488,91.379,91.331,4.11726453]
[1773630199039,2.13773488,91.369,91.311,6.29799767]
[1773630201840,36.54062912,91.416,91.311,6.29799767]
[1773630202046,2.10062912,91.379,91.311,6.29799767]
[1773630203140,2.10062912,91.379,91.321,6.11190863]
[1773630205348,2.05092273,91.399,91.341,6.11190863]
[1773630206250,2.04141794,91.389,91.341,6.11190863]
[1773630208349,2.08619025,91.379,91.321,6.11190863]
[1773630208550,2.87336424,91.37,91.321,6.11190863]
[1773630209851,2.08619025,91.379,91.321,6.11190863]
[1773630210351,2.08619025,91.379,91.331,6.11190863]
[1773630214954,1.90102844,91.389,91.331,6.11190863]
[1773630216053,1.90102844,91.389,91.341,6.11190863]
[1773630216249,2.87535966,91.4,91.341,6.11190863]
[1773630216449,1.90181397,91.399,91.341,6.11190863]
[1773630219562,2.87535966,91.39,91.341,6.11190863]
[1773630220262,4.72819744,91.39,91.341,6.11190863]
[1773630222363,1.83078377,91.389,91.341,6.11190863]
[1773630224266,1.83078377,91.389,91.33,8.98726829]
[1773630224468,1.80931517,91.379,91.331,6.11190863]
[1773630230165,32.79,91.412,91.331,6.11190863]
[1773630230166,2.87535966,91.39,91.331,6.11190863]
[1773630230867,1.74878093,91.393,91.34,2.87535966]
[1773630231172,1.74878093,91.393,91.341,6.11190863]
[1773630232970,1.70101827,91.389,91.341,6.11190863]
[1773630236772,1.70037544,91.403,91.341,6.11190863]
[1773630236975,1.70037544,91.409,91.351,5.68198491]
[1773630239572,2.87535966,91.42,91.36,2.87535966]
[1773630239779,2.87535966,91.42,91.361,5.68198491]
[1773630240278,1.83396994,91.419,91.361,5.68198491]
[1773630244181,2.87535966,91.43,91.371,5.68198491]
[1773630244683,4.7072507,91.43,91.371,5.68198491]
[1773630244984,1.83189104,91.43,91.381,5.68198491]
[1773630248181,2.87535966,91.44,91.381,5.68198491]
[1773630248379,1.81268661,91.448,91.391,5.68198491]
[1773630248581,1.80481045,91.439,91.391,5.68198491]
[1773630249081,1.81223464,91.429,91.371,5.68198491]
[1773630258894,2.87535966,91.44,91.38,2.87535966]
[1773630259097,2.87535966,91.44,91.381,5.68198491]
[1773630259794,2.87535966,91.46,91.4,2.87535966]
[1773630260096,1.65885892,91.467,91.411,5.68198491]
[1773630260497,2.87535966,91.44,91.411,5.68198491]
[1773630260691,2.87535966,91.44,91.381,5.68198491]
[1773630260900,1.51560884,91.439,91.381,5.68198491]
[1773630262003,2.87535966,91.42,91.381,5.68198491]
[1773630262197,1.53464932,91.429,91.381,5.68198491]
[1773630262701,2.87535966,91.44,91.381,5.68198491]
[1773630263190,1.50432557,91.445,91.381,5.68198491]
[1773630263390,4.37968523,91.43,91.381,5.68198491]
[1773630263595,2.87535966,91.42,91.381,5.68198491]
[1773630266901,1.50432557,91.429,91.381,5.68198491]
[1773630268705,2.87535966,91.44,91.381,5.68198491]
[1773630268900,1.23699876,91.442,91.391,5.94219654]
[1773630269504,2.87535966,91.45,91.391,5.94219654]
[1773630270400,1.23699876,91.455,91.391,5.94219654]
[1773630271304,2.87535966,91.43,91.391,5.94219654]
[1773630272907,2.8719071,91.43,91.391,5.94219654]
[1773630273811,2.8719071,91.42,91.391,5.94219654]
[1773630276313,2.8719071,91.43,91.391,5.94219654]
[1773630281012,1.13997817,91.439,91.391,5.94219654]
[1773630288821,0.74074419,91.449,91.391,5.94219654]
[1773630289517,5.67728109,91.482,91.421,5.94219654]
[1773630289717,5.67728109,91.496,91.431,5.94219654]
[1773630290119,5.67728109,91.496,91.424,13.56899339]
[1773630290120,5.67728109,91.496,91.441,5.94219654]
[1773630290720,5.67728109,91.509,91.451,5.94219654]
[1773630298124,5.48865036,91.532,91.461,5.58558443]
[1773630298325,5.48865036,91.529,91.461,5.58558443]
[1773630298516,5.48865036,91.529,91.471,5.58558443]
[1773630300631,5.48865036,91.499,91.44,2.8719071]
[1773630300933,5.48865036,91.499,91.441,5.58558443]
[1773630304424,5.48865036,91.489,91.441,5.58558443]
[1773630305228,2.8719071,91.49,91.441,5.58558443]
[1773630305433,5.48865036,91.506,91.441,5.58558443]
[1773630305826,5.48865036,91.519,91.461,5.58558443]
[1773630307131,2.8719071,91.51,91.461,5.58558443]
[1773630310826,5.48865036,91.509,91.461,5.58558443]
[1773630314029,5.48865036,91.499,91.446,5.58558443]
[1773630316631,5.48865036,91.489,91.434,5.58558443]
[1773630316831,5.48865036,91.469,91.42,5.58558443]
[1773630317326,5.48865036,91.469,91.4,12.99803761]
[1773630317327,5.48865036,91.459,91.4,2.8719071]
[1773630317531,5.48865036,91.459,91.405,5.58558443]
[1773630319132,2.8719071,91.45,91.405,5.58558443]
[1773630319333,5.48865036,91.459,91.405,5.58558443]
[1773630322027,2.8719071,91.45,91.405,5.58558443]
[1773630322525,5.371646,91.45,91.405,5.58558443]
[1773630322725,8.2435531,91.45,91.405,5.58558443]
[1773630323939,5.371646,91.449,91.405,5.58558443]
[1773630324435,5.371646,91.439,91.386,5.63988655]
[1773630327045,2.8719071,91.42,91.371,5.63988655]
[1773630330348,5.371646,91.429,91.371,5.63988655]
[1773630331546,8.2435531,91.44,91.381,5.63988655]
[1773630331948,5.371646,91.439,91.381,5.63988655]
[1773630332244,5.371646,91.419,91.381,5.63988655]
[1773630332844,5.371646,91.419,91.361,5.63988655]
[1773630333243,5.371646,91.409,91.361,5.63988655]
[1773630340560,2.87339035,91.42,91.361,5.63988655]
[1773630340761,5.371646,91.424,91.361,5.63988655]
[1773630343565,5.371646,91.419,91.361,5.63988655]
[1773630347069,2.87339035,91.44,91.381,5.63988655]
[1773630347270,2.87339035,91.43,91.381,5.63988655]
[1773630348968,4.56408319,91.429,91.381,5.63988655]
[1773630352769,4.56415688,91.419,91.361,5.394921]
[1773630354267,2.87339035,91.41,91.361,5.394921]
[1773630355869,4.56415688,91.419,91.361,5.394921]
[1773630359278,4.56415688,91.419,91.364,5.33620176]
[1773630360373,7.43789637,91.41,91.364,5.33620176]
[1773630360573,4.56450602,91.41,91.364,5.33620176]
[1773630361274,4.56450602,91.41,91.366,5.33620176]
[1773630362168,4.56450602,91.41,91.367,5.33620176]
[1773630362364,4.56450602,91.41,91.368,5.33620176]
[1773630363370,4.56450602,91.41,91.369,5.33620176]
[1773630363976,4.56450602,91.41,91.368,10.12776192]
[1773630364170,4.58378817,91.409,91.362,10.12776192]
[1773630364474,4.58378817,91.37,91.332,10.12776192]
[1773630364674,4.58527309,91.384,91.342,15.46396368]
[1773630364968,4.58527309,91.384,91.343,5.33620176]
[1773630369283,4.60302046,91.369,91.331,5.33620176]
[1773630371585,4.73664413,91.382,91.331,5.33620176]
[1773630371786,4.73664413,91.382,91.334,5.33620176]
[1773630373683,4.70803588,91.395,91.341,5.33620176]
[1773630374390,4.70803588,91.395,91.336,10.12776192]
[1773630374391,4.71005444,91.409,91.351,5.33620176]
[1773630374682,2.87339035,91.42,91.36,2.87339035]
[1773630374887,2.87339035,91.42,91.361,5.33620176]
[1773630374888,4.69893611,91.419,91.361,5.33620176]
[1773630379390,4.69893611,91.419,91.371,5.33620176]
[1773630379594,2.87339035,91.43,91.371,5.33620176]
[1773630379794,4.77497712,91.429,91.371,5.33620176]
[1773630380990,4.77497712,91.429,91.342,20.35349008]
[1773630380991,4.75958797,91.409,91.353,5.33620176]
[1773630382697,2.87339035,91.4,91.353,5.33620176]
[1773630384797,4.75958797,91.409,91.353,5.33620176]
[1773630397402,4.75958797,91.409,91.36,2.87332394]
[1773630397705,4.75958797,91.409,91.361,5.48705082]
[1773630406106,4.56095043,91.42,91.371,5.48705082]
[1773630406307,2.87332394,91.43,91.371,5.48705082]
[1773630406909,4.5514328,91.429,91.371,5.48705082]
[1773630413517,4.50106986,91.419,91.371,5.48705082]
[1773630421116,4.26351485,91.409,91.364,13.56899339]
[1773630421315,4.26351485,91.399,91.36,5.15775658]
[1773630422418,4.23503192,91.412,91.36,5.15775658]
[1773630422822,4.23503192,91.412,91.361,5.15775658]
[1773630426025,4.23503192,91.412,91.371,5.15775658]
[1773630427421,4.08937692,91.429,91.371,5.15775658]
[1773630436431,3.89862611,91.419,91.371,5.15775658]
[1773630436837,3.8130304,91.409,91.371,5.15775658]
[1773630441039,3.76348189,91.429,91.371,5.15775658]
[1773630442843,3.74048847,91.419,91.371,5.15775658]
[1773630443144,3.74048847,91.409,91.361,13.56899339]
[1773630443942,3.74048847,91.409,91.36,5.42286095]
[1773630446747,3.74048847,91.409,91.35,2.87332394]
[1773630446748,3.74048847,91.409,91.362,5.42286095]
[1773630454050,3.74048847,91.409,91.363,5.42286095]
[1773630456844,2.87343509,91.4,91.363,5.42286095]
[1773630457053,3.73252293,91.399,91.352,5.42286095]
[1773630481269,3.73252293,91.399,91.348,13.56899339]
[1773630481471,3.58432971,91.389,91.34,18.91812821]
[1773630481670,3.58432971,91.389,91.341,5.34913482]
[1773630482169,2.87343509,91.39,91.341,5.34913482]
[1773630482472,3.58131727,91.4,91.351,5.34913482]
[1773630482774,3.59286148,91.411,91.361,5.34913482]
[1773630484976,2.87343509,91.41,91.361,5.34913482]
[1773630485177,3.64780481,91.409,91.361,5.34913482]
[1773630485775,3.64780481,91.409,91.335,34.44]
[1773630485776,3.66338759,91.421,91.371,5.34913482]
[1773630486676,2.87343509,91.42,91.371,5.34913482]
[1773630486975,3.62751437,91.399,91.361,5.34913482]
[1773630487776,3.62751437,91.399,91.35,18.91812821]
[1773630487976,3.6822151,91.389,91.35,5.34913482]
[1773630490180,6.60829858,91.4,91.35,5.34913482]
[1773630490575,3.73486349,91.399,91.35,5.34913482]
[1773630492174,3.73486349,91.399,91.352,5.34913482]
[1773630493077,3.73486349,91.399,91.352,18.91812821]
[1773630493372,3.73486349,91.399,91.353,5.34913482]
[1773630497187,3.73486349,91.399,91.354,5.34913482]
[1773630507991,3.73486349,91.399,91.355,4.86190282]
[1773630512999,3.22531953,91.379,91.344,13.56899339]
[1773630513201,3.22531953,91.369,91.334,13.56899339]
[1773630513498,3.22531953,91.349,91.308,4.86190282]
[1773630516295,5.99454913,91.36,91.308,4.86190282]
[1773630517705,2.87343509,91.37,91.311,4.86190282]
[1773630517906,3.09251225,91.371,91.321,4.86190282]
[1773630520007,3.11679159,91.369,91.321,4.86190282]
[1773630521402,3.12177071,91.38,91.321,4.86190282]
[1773630521709,3.12177071,91.379,91.321,4.86190282]
[1773630522008,3.10956333,91.369,91.321,4.86190282]
[1773630525119,3.08470176,91.386,91.331,4.86190282]
[1773630529620,3.05086485,91.397,91.351,4.86190282]
[1773630531917,3.05741672,91.419,91.351,4.86190282]
[1773630532123,3.05741672,91.419,91.361,5.0148419]
[1773630534025,3.02200479,91.429,91.371,4.61654002]
[1773630534224,3.02200479,91.429,91.381,4.61654002]
[1773630540630,12.07134499,91.476,91.349,34.44]
[1773630540631,2.87550399,91.45,91.391,4.61654002]
[1773630541132,2.87550399,91.46,91.391,4.61654002]
[1773630541525,2.87550399,91.46,91.401,5.04499587]
[1773630542328,2.87550399,91.46,91.385,5.03825197]
[1773630542529,2.87550399,91.44,91.385,5.03825197]
[1773630542834,0.15163465,91.439,91.385,5.03825197]
[1773630544428,0.15163465,91.439,91.391,4.99026052]
[1773630545027,0.22398808,91.451,91.391,4.99026052]
[1773630545234,0.22398808,91.451,91.401,4.96908286]
[1773630545433,0.22398808,91.473,91.401,4.96908286]
[1773630545634,0.22398808,91.469,91.411,4.96908286]
[1773630549740,2.87550399,91.46,91.411,4.96908286]
[1773630550034,0.22290269,91.459,91.411,4.96908286]
[1773630563449,0.12458083,91.429,91.384,4.93480396]
[1773630563742,2.87550399,91.42,91.384,4.93480396]
[1773630564445,2.87550399,91.44,91.384,4.93480396]
[1773630564650,2.87550399,91.45,91.39,2.87550399]
[1773630564852,0.23694426,91.451,91.391,4.86608038]
[1773630565846,2.87550399,91.46,91.401,4.89748102]
[1773630567649,0.44779117,91.476,91.42,2.87550399]
[1773630567853,0.44779117,91.476,91.421,4.82233122]
[1773630568155,2.87550399,91.5,91.441,4.82233122]
[1773630570857,3.15419268,91.5,91.441,4.82233122]
[1773630571158,0.27868869,91.5,91.441,4.82233122]
[1773630572353,32.82,91.543,91.451,4.85210617]
[1773630572558,2.08398817,91.558,91.51,2.87550399]
[1773630575760,2.08398817,91.558,91.5,2.87550399]
[1773630576461,2.87550399,91.57,91.51,2.87550399]
[1773630576664,32.82,91.628,91.467,34.42]
[1773630576665,12.08314664,91.579,91.52,2.87550399]
[1773630577155,2.87550399,91.57,91.51,2.87550399]
[1773630577360,14.95814929,91.57,91.51,2.87550399]
[1773630579566,12.0826453,91.57,91.51,2.87550399]
[1773630580562,14.95814929,91.57,91.51,2.87550399]
[1773630580763,14.94556147,91.57,91.51,2.86291617]
[1773630580961,12.0826453,91.57,91.51,2.86291617]
[1773630581161,12.07695134,91.58,91.52,2.86291617]
[1773630581868,12.07695134,91.58,91.53,2.86291617]
[1773630582065,12.08040283,91.594,91.54,2.86291617]
[1773630582263,12.08040283,91.594,91.53,2.86291617]
[1773630582457,12.08040283,91.594,91.54,2.86291617]
[1773630583863,12.08040283,91.594,91.495,34.42]
[1773630584069,12.08040283,91.594,91.53,2.86291617]
[1773630584866,12.08040283,91.594,91.54,2.86291617]
[1773630586867,12.08040283,91.594,91.53,2.86291617]
[1773630587767,12.08040283,91.594,91.496,34.4]
[1773630587974,12.06694742,91.569,91.51,2.86291617]
[1773630588770,12.06694742,91.569,91.485,19.672]
[1773630588771,12.06694742,91.569,91.52,2.86291617]
[1773630589471,12.06694742,91.569,91.51,2.86291617]
[1773630589873,12.06694742,91.569,91.485,19.672]
[1773630589874,2.86291617,91.59,91.52,2.86291617]
[1773630590972,2.86291617,91.58,91.52,2.86291617]
[1773630591775,5.99520403,91.579,91.52,2.86291617]
[1773630595271,5.99216405,91.569,91.51,2.86291617]
[1773630600576,5.97567722,91.549,91.49,2.86291617]
[1773630603379,5.9746752,91.539,91.48,2.86291617]
[1773630604079,5.9746752,91.539,91.49,2.86291617]
[1773630605475,5.97340139,91.559,91.51,2.86291617]
[1773630605673,15.40789427,91.654,91.521,4.48423335]
[1773630605674,2.86291617,91.58,91.521,4.48423335]
[1773630607781,4.76372854,91.579,91.521,4.48423335]
[1773630608574,4.76372854,91.579,91.531,4.56634821]
[1773630609588,4.76372854,91.549,91.493,4.61387149]
[1773630609987,4.76372854,91.549,91.501,4.61568852]